bitfinex-derivatives/quotes_SOLF0:USTF0_20250624
["timestamp","ask_amount","ask_price","bid_price","bid_amount"]
[1750775071029,43.28,145.01,144.94,7.26169295]
[1750775071235,43.28,145.01,144.97,6.8939]
[1750775071437,43.28,145.01,144.94,7.26169295]
[1750775071634,6.8931,145.0,144.94,7.26169295]
[1750775071936,43.28,145.01,144.98,6.8934]
[1750775072234,50.1725,145.01,144.98,6.8934]
[1750775073035,50.1725,145.01,144.96,7.26169295]
[1750775073739,50.1725,145.01,144.98,6.8935]
[1750775074142,6.8929,145.0,144.97,6.8939]
[1750775074436,6.8929,145.0,144.93,2.2522]
[1750775074437,43.28,145.01,144.94,7.26169295]
[1750775074832,6.8933,144.99,144.94,7.26169295]
[1750775075541,6.8939,144.98,144.93,9.51389295]
[1750775075839,43.28,145.04,144.98,6.8935]
[1750775076038,6.893,145.0,144.96,7.26169295]
[1750775076433,7.26169295,145.05,144.96,7.26169295]
[1750775076434,43.28,145.02,144.96,7.26169295]
[1750775076837,43.28,145.02,144.99,6.893]
[1750775077240,43.28,145.02,144.97,7.26169295]
[1750775077436,43.28,145.02,145.0,6.8925]
[1750775079137,50.1718,145.02,145.0,6.8925]
[1750775079445,43.28,145.02,144.97,7.26169295]
[1750775079640,50.172,145.02,144.97,7.26169295]
[1750775080239,50.172,145.02,144.99,6.893]
[1750775080733,6.8923,145.01,144.99,6.893]
[1750775081236,6.8923,145.01,144.98,6.8934]
[1750775081541,6.8923,145.01,144.97,7.26169295]
[1750775081844,6.8923,145.01,144.98,6.8932]
[1750775082039,45.0734,145.06,144.99,7.26169295]
[1750775082242,42.8,145.06,145.01,7.26169295]
[1750775082448,2.0534,145.09,145.03,6.8912]
[1750775082741,42.8,145.08,145.01,7.26169295]
[1750775082943,42.8,145.08,144.98,11.81749295]
[1750775082944,7.26169295,145.07,144.98,11.81749295]
[1750775083142,6.8916,145.03,144.98,11.81749295]
[1750775083336,42.8,145.04,144.98,11.81749295]
[1750775083742,6.8914,145.03,144.98,11.81749295]
[1750775084042,6.8914,145.03,145.0,6.8924]
[1750775084939,4.35530604,145.02,144.92,12.75080062]
[1750775085139,4.35672293,145.02,144.91,12.75080062]
[1750775085339,6.893,145.0,144.96,6.8944]
[1750775085545,42.8,145.0,144.94,4.35672293]
[1750775085750,47.1964,145.03,144.92,12.75080062]
[1750775086049,47.1964,145.03,144.96,4.35672293]
[1750775086440,47.1964,145.03,144.96,11.25112293]
[1750775086642,47.1964,145.03,144.95,4.35672293]
[1750775086947,6.8935,144.99,144.96,6.8946]
[1750775087240,6.8935,144.99,144.95,4.35672293]
[1750775087241,4.35672293,145.02,144.92,55.55080062]
[1750775087441,6.8939,144.98,144.95,6.8949]
[1750775087941,42.8,144.99,144.94,4.35672293]
[1750775088142,49.6935,144.99,144.96,6.8945]
[1750775088345,42.8,144.99,144.96,6.8945]
[1750775089043,42.8,144.99,144.97,6.8939]
[1750775089244,42.8,144.99,144.94,4.35672293]
[1750775089645,6.894,144.98,144.95,6.8949]
[1750775090946,42.8,144.99,144.94,4.35672293]
[1750775091142,42.8,144.99,144.92,4.35672293]
[1750775091547,6.8947,144.96,144.93,6.8957]
[1750775091737,42.8,144.99,144.91,4.35672293]
[1750775092349,4.35672293,144.98,144.91,4.35672293]
[1750775092852,6.8957,144.94,144.91,11.25352293]
[1750775093144,4.35672293,144.98,144.91,11.25352293]
[1750775093145,4.35672293,144.98,144.91,4.35672293]
[1750775093353,4.35672293,144.98,144.89,49.56152293]
[1750775093843,6.8956,144.94,144.91,6.8966]
[1750775094242,6.8956,144.94,144.89,6.76152293]
[1750775094849,6.8953,144.95,144.89,6.76152293]
[1750775095452,6.8957,144.94,144.89,6.76152293]
[1750775095849,4.35672293,144.98,144.92,6.8965]
[1750775096150,6.8954,144.95,144.92,6.8965]
[1750775098046,42.8,144.99,144.91,4.35672293]
[1750775098446,42.8,144.99,144.95,4.35672293]
[1750775098840,42.8,144.99,144.97,6.8937]
[1750775099042,595.48,145.01,144.97,4.35672293]
[1750775099342,42.82,145.02,144.97,4.35672293]
[1750775099538,42.82,145.02,144.99,4.35672293]
[1750775099746,2.058,145.07,145.01,4.35672293]
[1750775099946,42.82,145.06,145.03,11.24762293]
[1750775100152,42.82,145.06,145.03,4.35672293]
[1750775100352,42.82,145.09,145.03,7.25286316]
[1750775100552,6.8892,145.08,145.03,7.25286316]
[1750775100743,42.82,145.09,145.03,7.25286316]
[1750775101054,6.8897,145.07,145.04,6.8904]
[1750775103657,6.8891,145.08,145.04,6.8904]
[1750775103855,42.82,145.09,145.04,6.8904]
[1750775104344,6.8895,145.07,145.04,6.8904]
[1750775104546,42.82,145.09,145.03,14.14396316]
[1750775104750,42.82,145.09,145.03,7.25286316]
[1750775105354,6.8898,145.07,145.04,6.8906]
[1750775106057,42.82,145.09,145.03,14.14406316]
[1750775106356,42.82,145.09,145.03,7.25286316]
[1750775106552,6.8897,145.07,145.04,6.8906]
[1750775107160,6.8902,145.06,145.03,6.8912]
[1750775107953,638.38,145.12,145.05,7.25286316]
[1750775108144,638.38,145.12,145.07,7.25286316]
[1750775108663,42.8,145.12,145.07,7.25286316]
[1750775108860,50.05286316,145.12,145.03,2.3654]
[1750775109341,50.05286316,145.12,145.06,6.8895]
[1750775109546,42.8,145.12,145.04,7.25286316]
[1750775110755,6.8883,145.1,145.06,6.8897]
[1750775110957,6.8883,145.1,145.04,7.25286316]
[1750775111156,42.8,145.12,145.04,7.25286316]
[1750775111349,6.8881,145.1,145.07,6.8892]
[1750775111761,6.8881,145.1,145.06,7.25286316]
[1750775111762,6.8881,145.1,145.06,6.8896]
[1750775111960,42.8,145.12,145.06,6.8896]
[1750775112366,6.8892,145.08,145.05,14.14306316]
[1750775112663,42.8,145.12,145.05,7.25286316]
[1750775113050,42.04,145.11,145.05,7.25286316]
[1750775114056,6.8886,145.09,145.06,6.8898]
[1750775114263,7.25286316,145.15,145.06,6.8898]
[1750775114562,42.04,145.14,145.06,6.8898]
[1750775114761,6.8887,145.09,145.06,6.8898]
[1750775114947,42.04,145.14,145.05,14.14286316]
[1750775115147,7.25286316,145.13,145.05,6.89]
[1750775115360,6.8892,145.08,145.05,6.89]
[1750775115560,42.04,145.1,145.05,6.89]
[1750775115765,42.04,145.1,145.04,6.8907]
[1750775116266,6.8899,145.06,145.04,6.8907]
[1750775116864,6.8897,145.07,145.05,6.8903]
[1750775118067,42.04,145.1,145.05,6.8903]
[1750775118068,6.8892,145.08,145.05,6.8903]
[1750775118365,6.8895,145.07,145.04,6.8906]
[1750775118870,42.04,145.1,145.01,4.5413]
[1750775119069,42.04,145.1,145.01,11.79416316]
[1750775119368,42.04,145.1,145.04,6.8906]
[1750775120066,6.8897,145.07,145.04,6.8906]
[1750775120365,46.39162676,145.1,145.04,6.8906]
[1750775121056,42.04,145.1,145.04,4.35162676]
[1750775121259,6.8892,145.08,145.04,4.35162676]
[1750775121463,42.04,145.1,145.06,6.8895]
[1750775121761,42.04,145.1,145.06,4.35162676]
[1750775122070,4.35162676,145.13,145.06,4.35162676]
[1750775122071,42.04,145.13,145.09,6.8882]
[1750775122362,42.04,145.13,145.08,4.35162676]
[1750775122564,42.04,145.13,145.09,6.8882]
[1750775122954,42.04,145.13,145.06,4.35162676]
[1750775123458,6.8878,145.11,145.06,4.35162676]
[1750775123659,42.04,145.12,145.06,4.35162676]
[1750775124060,42.04,145.12,145.04,42.04]
[1750775124255,42.04,145.12,145.06,4.35162676]
[1750775124452,6.8876,145.11,145.08,6.8886]
[1750775124667,42.04,145.12,145.06,4.35162676]
[1750775124868,48.9274,145.12,145.09,6.8881]
[1750775125268,42.04,145.12,145.08,4.35162676]
[1750775125564,48.9271,145.12,145.1,6.888]
[1750775126066,6.8877,145.11,145.08,4.35162676]
[1750775126257,6.8877,145.11,145.04,42.04]
[1750775126567,6.8877,145.11,145.07,4.35162676]
[1750775126773,6.8877,145.11,145.08,6.8889]
[1750775126968,48.9273,145.12,145.07,4.35162676]
[1750775127270,48.9273,145.12,145.09,6.8881]
[1750775127871,6.8876,145.11,145.09,6.8881]
[1750775128065,42.04,145.12,145.09,6.8881]
[1750775128266,42.04,145.12,145.08,6.8887]
[1750775128464,42.04,145.12,145.07,4.35162676]
[1750775129371,42.04,145.12,145.07,11.24072676]
[1750775129670,6.8882,145.1,145.07,11.24072676]
[1750775129867,42.04,145.12,145.07,4.35162676]
[1750775130170,42.04,145.12,145.09,4.35162676]
[1750775131473,42.04,145.12,145.1,6.8878]
[1750775132471,42.02,145.15,145.09,4.35162676]
[1750775132866,6.887,145.13,145.1,6.8878]
[1750775133475,6.887,145.12,145.1,6.8878]
[1750775133769,42.02,145.15,145.1,6.8878]
[1750775134071,42.02,145.15,145.09,4.35162676]
[1750775134279,42.02,145.17,145.11,4.35162676]
[1750775134773,6.8862,145.14,145.12,6.8868]
[1750775135167,42.02,145.17,145.12,6.8868]
[1750775135376,42.02,145.21,145.15,4.35162676]
[1750775135766,6.8835,145.2,145.17,6.8842]
[1750775135961,597.4537,145.26,145.17,4.35162676]
[1750775136174,42.02,145.24,145.19,4.35162676]
[1750775137264,6.8821,145.23,145.2,6.883]
[1750775138181,42.02,145.24,145.19,4.35162676]
[1750775138373,42.02,145.24,145.21,4.35162676]
[1750775138575,42.02,145.27,145.23,4.35162676]
[1750775138774,42.02,145.27,145.24,6.8809]
[1750775139376,42.02,145.27,145.23,4.35162676]
[1750775139679,42.02,145.3,145.25,4.35162676]
[1750775140786,6.8799,145.28,145.25,4.35162676]
[1750775141081,42.02,145.3,145.25,4.35162676]
[1750775141983,6.8797,145.28,145.25,11.23212676]
[1750775142185,42.02,145.3,145.25,4.35162676]
[1750775142680,46.37162676,145.3,145.23,4.35162676]
[1750775143276,6.8808,145.26,145.23,4.35162676]
[1750775143475,46.37162676,145.3,145.21,4.35162676]
[1750775143683,4.35162676,145.28,145.17,48.7309]
[1750775143880,4.35162676,145.26,145.17,48.7309]
[1750775144078,41.88,145.25,145.18,4.35162676]
[1750775144285,41.88,145.24,145.18,6.8839]
[1750775144585,41.88,145.23,145.17,6.8509]
[1750775144788,6.8833,145.2,145.17,2.3176]
[1750775144989,41.88,145.23,145.16,7.23808794]
[1750775145283,6.8832,145.21,145.17,6.8844]
[1750775145485,41.88,145.23,145.17,6.8844]
[1750775146389,41.88,145.23,145.16,7.23808794]
[1750775147182,41.88,145.23,145.15,7.23808794]
[1750775147688,6.8838,145.19,145.16,6.8849]
[1750775148184,6.8838,145.19,145.17,6.8846]
[1750775148585,6.8834,145.2,145.17,6.8846]
[1750775148788,41.88,145.23,145.14,4.6473]
[1750775148993,9.65158794,145.22,145.11,44.2511]
[1750775149189,7.23808794,145.2,145.14,6.8858]
[1750775149397,41.88,145.19,145.14,6.8858]
[1750775149995,41.88,145.19,145.15,6.8855]
[1750775150701,41.88,145.19,145.14,6.8859]
[1750775151800,6.885,145.17,145.14,6.8859]
[1750775152903,41.88,145.19,145.15,6.8855]
[1750775153201,41.88,145.19,145.11,51.48918794]
[1750775153402,6.8849,145.17,145.14,6.8857]
[1750775153701,41.88,145.19,145.11,51.48918794]
[1750775154199,6.8844,145.18,145.15,6.8856]
[1750775154402,41.88,145.19,145.11,51.48918794]
[1750775154905,41.88,145.19,145.13,6.8862]
[1750775155102,41.88,145.19,145.11,51.48918794]
[1750775155294,6.8849,145.17,145.14,6.8858]
[1750775155905,6.8844,145.18,145.15,6.8855]
[1750775156206,41.88,145.19,145.11,51.48918794]
[1750775156404,49.11808794,145.19,145.11,6.8872]
[1750775156598,41.88,145.19,145.11,7.23808794]
[1750775157003,6.8843,145.18,145.15,6.8853]
[1750775157305,41.88,145.19,145.11,7.23808794]
[1750775157807,6.8845,145.18,145.11,7.23808794]
[1750775158008,41.88,145.19,145.11,7.23808794]
[1750775160205,41.88,145.19,145.09,4.6002]
[1750775160408,44.2935,145.22,145.1,7.23808794]
[1750775160608,44.2935,145.22,145.13,7.23808794]
[1750775160907,7.23808794,145.21,145.09,4.6002]
[1750775161108,7.23808794,145.19,145.1,7.23808794]
[1750775161301,41.88,145.18,145.1,7.23808794]
[1750775161501,41.88,145.18,145.09,4.6002]
[1750775161906,6.8861,145.14,145.12,6.8868]
[1750775162110,41.88,145.18,145.09,4.6002]
[1750775162310,7.23808794,145.17,145.08,49.11808794]
[1750775162501,6.8887,145.09,145.04,11.92738794]
[1750775162811,41.88,145.11,145.04,11.92738794]
[1750775163003,6.8897,145.07,145.05,6.8903]
[1750775163207,6.8897,145.07,145.02,51.36018794]
[1750775163413,49.11808794,145.11,145.02,51.36018794]
[1750775163615,7.23808794,145.09,145.0,4.6893]
[1750775163914,7.23808794,145.07,144.97,7.23808794]
[1750775164107,2.0525,145.1,144.96,41.88]
[1750775164108,41.88,145.06,144.99,7.23808794]
[1750775164317,41.88,145.05,145.0,4.35318667]
[1750775164607,41.88,145.05,144.98,4.35318667]
[1750775164811,41.88,145.05,145.0,4.35318667]
[1750775165109,46.23318667,145.05,144.97,4.35318667]
[1750775166201,6.8928,145.0,144.97,6.894]
[1750775166601,48.7922,145.02,144.95,14.26811952]
[1750775166799,41.9,145.02,144.95,14.26811952]
[1750775167215,41.9,145.02,144.97,6.8941]
[1750775167216,6.893,145.0,144.97,6.8941]
[1750775167414,41.9,145.02,144.95,14.26811952]
[1750775167910,6.8933,144.99,144.96,6.8944]
[1750775168112,6.8933,144.99,144.95,7.0088]
[1750775168815,6.8933,144.99,144.96,6.8945]
[1750775169703,41.9,145.02,144.9,41.92]
[1750775169911,41.9,145.02,144.92,7.25931952]
[1750775170111,41.9,145.02,144.96,7.25931952]
[1750775170304,6.8925,145.01,144.98,6.8934]
[1750775170609,41.9,145.02,144.95,7.25931952]
[1750775171009,6.8924,145.01,144.98,6.8937]
[1750775171317,41.9,145.02,144.95,7.25931952]
[1750775172016,41.9,145.02,144.91,62.0]
[1750775172210,6.8927,145.01,144.97,6.8938]
[1750775172410,41.9,145.02,144.97,6.8938]
[1750775172620,41.9,145.02,144.98,6.8936]
[1750775172819,41.9,145.02,144.95,7.25931952]
[1750775173917,41.9,145.02,144.98,6.8936]
[1750775174109,41.9,145.02,144.95,7.25931952]
[1750775174312,41.9,145.02,144.96,6.8943]
[1750775174520,41.9,145.02,144.95,7.25931952]
[1750775174716,41.9,145.02,144.93,7.25931952]
[1750775174911,41.9,145.02,144.95,6.8949]
[1750775175110,44.3204,145.02,144.95,6.8949]
[1750775175312,6.8937,144.99,144.95,6.8949]
[1750775175814,44.3204,145.02,144.95,6.8949]
[1750775176016,44.3204,145.02,144.94,6.8952]
[1750775176227,7.25931952,145.01,144.91,7.25931952]
[1750775176616,6.8942,144.97,144.94,6.8956]
[1750775177127,6.8949,144.96,144.93,6.896]
[1750775177427,41.7,144.98,144.91,7.25931952]
[1750775177610,6.8948,144.96,144.93,6.8959]
[1750775177813,41.7,144.98,144.92,7.25931952]
[1750775178125,41.7,144.98,144.9,9.51591952]
[1750775178325,41.7,144.98,144.9,2.2566]
[1750775178830,41.7,144.98,144.91,6.8968]
[1750775179116,41.7,144.98,144.91,7.25931952]
[1750775179525,6.8951,144.95,144.92,6.8963]
[1750775179725,41.7,144.98,144.9,2.2566]
[1750775180522,41.7,144.98,144.92,6.8965]
[1750775180724,41.7,144.98,144.9,2.2566]
[1750775181020,6.8964,144.93,144.9,9.154]
[1750775181220,6.8964,144.93,144.9,2.2566]
[1750775181618,7.25931952,144.97,144.9,2.2566]
[1750775181825,7.25931952,144.95,144.85,7.25931952]
[1750775182028,41.72,144.94,144.85,7.25931952]
[1750775182220,6.8975,144.9,144.85,7.25931952]
[1750775182915,41.72,144.94,144.85,7.25931952]
[1750775183914,6.8973,144.91,144.88,6.8984]
[1750775184113,41.72,144.94,144.86,7.25931952]
[1750775184319,7.25931952,144.93,144.83,14.04791952]
[1750775184513,6.8983,144.89,144.83,14.04791952]
[1750775185024,41.72,144.9,144.83,6.7886]
[1750775185226,6.8992,144.87,144.84,6.9001]
[1750775185427,41.72,144.9,144.83,4.5558]
[1750775185635,6.8985,144.88,144.85,6.8996]
[1750775186228,6.8985,144.88,144.86,6.8994]
[1750775186527,6.8985,144.88,144.83,6.64386151]
[1750775186829,41.72,144.9,144.83,2.2805]
[1750775186830,6.8992,144.87,144.83,2.2805]
[1750775187024,41.72,144.9,144.83,6.64386151]
[1750775187331,41.72,144.9,144.86,6.8992]
[1750775187630,6.8983,144.89,144.86,6.8992]
[1750775187931,41.72,144.9,144.86,6.8992]
[1750775188132,6.8981,144.89,144.86,6.8992]
[1750775188325,41.72,144.9,144.85,6.8996]
[1750775188526,6.8993,144.87,144.83,6.64386151]
[1750775188832,4.36336151,144.89,144.82,6.9011]
[1750775189023,41.74,144.88,144.82,6.9011]
[1750775189220,4.36336151,144.85,144.72,665.12808815]
[1750775189423,41.74,144.84,144.78,4.36336151]
[1750775189630,41.74,144.84,144.8,6.9019]
[1750775189833,41.74,144.84,144.78,4.36336151]
[1750775190331,41.74,144.84,144.8,4.36336151]
[1750775190832,6.9009,144.83,144.81,6.9015]
[1750775191038,41.74,144.84,144.8,4.36336151]
[1750775191327,41.74,144.84,144.77,4.36336151]
[1750775191526,41.74,144.84,144.81,4.36336151]
[1750775191837,41.74,144.87,144.85,6.8995]
[1750775192327,41.74,144.87,144.86,6.8994]
[1750775192531,48.6377,144.9,144.85,4.36336151]
[1750775192732,41.74,144.9,144.85,4.36336151]
[1750775193028,48.6377,144.9,144.87,6.8988]
[1750775193428,41.74,144.9,144.88,6.8984]
[1750775193618,41.74,144.9,144.87,4.36336151]
[1750775194522,41.74,144.9,144.88,6.8982]
[1750775194929,41.74,144.9,144.87,4.36336151]
[1750775195126,41.74,144.9,144.85,4.36336151]
[1750775195328,46.10336151,144.9,144.83,4.36336151]
[1750775195522,46.10336151,144.9,144.8,6.9146]
[1750775195523,4.36336151,144.88,144.8,6.9146]
[1750775195728,41.74,144.9,144.8,6.61266151]
[1750775195729,4.36336151,144.86,144.8,6.61266151]
[1750775195934,41.74,144.85,144.8,6.61266151]
[1750775196130,6.9005,144.84,144.81,6.9014]
[1750775196430,41.74,144.85,144.8,6.61266151]
[1750775196625,6.9016,144.82,144.79,6.9025]
[1750775196830,6.9016,144.82,144.79,11.26586151]
[1750775197133,41.74,144.85,144.79,4.36336151]
[1750775198031,6.9006,144.84,144.79,4.36336151]
[1750775198334,6.9006,144.84,144.78,7.27605792]
[1750775198636,48.64,144.85,144.81,6.9015]
[1750775198834,41.74,144.85,144.77,41.74]
[1750775199131,41.74,144.85,144.79,7.27605792]
[1750775199333,41.74,144.88,144.81,7.27605792]
[1750775199630,41.74,144.88,144.83,6.9005]
[1750775199840,6.8993,144.87,144.83,6.9005]
[1750775200025,41.74,144.88,144.81,7.27605792]
[1750775200228,6.8992,144.87,144.81,7.27605792]
[1750775200736,6.8992,144.87,144.84,6.9003]
[1750775201326,7.27605792,144.87,144.76,62.0]
[1750775201632,7.27605792,144.87,144.75,2.2679]
[1750775201833,6.9012,144.83,144.79,6.9025]
[1750775202030,41.54,144.85,144.77,7.27605792]
[1750775203431,6.9021,144.81,144.77,14.17925792]
[1750775203636,48.81605792,144.85,144.75,2.2679]
[1750775203840,7.27605792,144.83,144.75,2.2679]
[1750775204140,7.27605792,144.83,144.74,7.27605792]
[1750775204325,41.54,144.85,144.74,7.27605792]
[1750775204532,7.27605792,144.83,144.76,6.9041]
[1750775204932,6.902,144.81,144.77,6.9033]
[1750775205237,41.54,144.81,144.74,7.27605792]
[1750775205442,6.9024,144.8,144.76,6.9041]
[1750775206037,6.9024,144.8,144.77,6.9037]
[1750775206239,41.54,144.81,144.77,6.9037]
[1750775206438,41.54,144.81,144.74,7.27605792]
[1750775206942,48.442,144.81,144.74,7.27605792]
[1750775207136,41.54,144.81,144.74,7.27605792]
[1750775207331,41.54,144.81,144.77,6.9033]
[1750775207535,41.54,144.81,144.74,7.27605792]
[1750775208035,41.54,144.81,144.77,6.9036]
[1750775208632,48.4421,144.81,144.78,6.9031]
[1750775209338,41.54,144.81,144.74,7.27605792]
[1750775210439,41.54,144.81,144.71,110.4939]
[1750775210638,41.54,144.81,144.75,7.27605792]
[1750775211046,48.4421,144.81,144.78,6.9032]
[1750775211344,41.54,144.81,144.77,7.27605792]
[1750775211643,43.7591,144.86,144.79,7.27605792]
[1750775212141,6.9013,144.83,144.77,7.27605792]
[1750775212749,6.9014,144.82,144.77,7.27605792]
[1750775213447,6.901,144.83,144.8,6.9019]
[1750775213847,6.9006,144.84,144.79,7.27605792]
[1750775214040,43.7591,144.86,144.77,6.938]
[1750775214240,7.27605792,144.85,144.77,6.938]
[1750775214443,6.902,144.81,144.78,6.903]
[1750775214741,7.27605792,144.83,144.74,7.27605792]
[1750775214945,41.56,144.82,144.74,7.27605792]
[1750775215246,41.56,144.82,144.77,6.9036]
[1750775215546,6.9028,144.79,144.76,6.904]
[1750775216648,6.9024,144.8,144.74,7.27605792]
[1750775217247,6.9024,144.8,144.77,6.9035]
[1750775217646,6.9029,144.79,144.76,6.904]
[1750775218149,6.9025,144.8,144.77,6.9036]
[1750775218350,41.56,144.82,144.76,7.27605792]
[1750775218747,6.902,144.81,144.78,6.9032]
[1750775218952,41.56,144.82,144.76,7.27605792]
[1750775219744,6.9024,144.8,144.77,6.9034]
[1750775219949,41.56,144.82,144.74,7.27605792]
[1750775220260,6.9025,144.8,144.77,6.9035]
[1750775220450,45.9285647,144.82,144.77,6.9035]
[1750775220851,41.56,144.82,144.76,6.9039]
[1750775221052,41.56,144.82,144.74,4.3685647]
[1750775221250,4.3685647,144.81,144.74,4.3685647]
[1750775221452,4.3685647,144.81,144.75,6.9044]
[1750775221955,4.3685647,144.79,144.71,6.5784647]
[1750775222153,41.56,144.78,144.71,6.5784647]
[1750775222352,41.56,144.78,144.73,4.3685647]
[1750775222554,41.56,144.78,144.77,6.9037]
[1750775224255,41.56,144.78,144.73,4.3685647]
[1750775224961,6.9039,144.77,144.74,6.9049]
[1750775225354,41.56,144.78,144.73,4.3685647]
[1750775225859,48.4636,144.78,144.75,6.9044]
[1750775226747,41.56,144.78,144.75,6.9044]
[1750775227060,41.56,144.78,144.73,4.3685647]
[1750775227362,48.4634,144.78,144.73,4.3685647]
[1750775227551,41.56,144.78,144.76,6.9039]
[1750775228258,41.56,144.78,144.73,4.3685647]
[1750775228464,41.56,144.78,144.71,2.2099]
[1750775228465,41.56,144.78,144.71,6.5784647]
[1750775228650,6.9044,144.76,144.73,6.9053]
[1750775229059,41.56,144.78,144.71,6.5784647]
[1750775229260,6.904,144.77,144.74,6.9048]
[1750775229764,6.9042,144.76,144.74,6.9048]
[1750775230158,6.9042,144.76,144.71,6.5784647]
[1750775230558,41.56,144.78,144.73,4.3685647]
[1750775231163,6.9039,144.77,144.74,6.9048]
[1750775231363,6.9039,144.77,144.73,4.3685647]
[1750775231760,48.4634,144.78,144.75,6.9044]
[1750775231962,41.56,144.78,144.71,2.2099]
[1750775232171,41.56,144.78,144.72,4.3685647]
[1750775232467,41.56,144.78,144.74,6.905]
[1750775232660,41.56,144.78,144.69,41.56]
[1750775232861,41.56,144.78,144.71,4.3685647]
[1750775233769,6.905,144.75,144.72,6.9057]
[1750775234163,41.56,144.78,144.71,4.3685647]
[1750775234368,6.9045,144.76,144.73,6.9052]
[1750775234566,41.56,144.78,144.69,41.56]
[1750775234763,41.56,144.78,144.7,4.3685647]
[1750775235274,41.56,144.78,144.72,6.9058]
[1750775235971,6.9059,144.73,144.7,6.9067]
[1750775236170,4.3685647,144.77,144.7,6.9067]
[1750775236469,4.3685647,144.77,144.7,4.3685647]
[1750775236971,6.9047,144.75,144.72,6.9058]
[1750775237164,41.56,144.78,144.7,4.3685647]
[1750775237670,6.9044,144.76,144.73,6.9055]
[1750775237872,41.56,144.78,144.7,4.3685647]
[1750775238171,6.9049,144.75,144.72,6.9058]
[1750775238369,41.56,144.78,144.7,4.3685647]
[1750775238570,6.9045,144.76,144.73,6.9055]
[1750775238764,41.56,144.78,144.73,6.9055]
[1750775239267,41.56,144.78,144.74,6.905]
[1750775239573,41.56,144.78,144.7,4.3685647]
[1750775239958,6.9046,144.76,144.73,6.9053]
[1750775240264,41.56,144.78,144.73,6.9053]
[1750775240465,6.9047,144.75,144.73,6.9053]
[1750775240665,6.9047,144.75,144.72,6.9058]
[1750775241072,6.9047,144.75,144.7,4.3685647]
[1750775241472,6.9043,144.76,144.72,4.3685647]
[1750775242365,6.9043,144.76,144.74,6.9051]
[1750775242567,6.9038,144.77,144.74,6.9051]
[1750775242772,41.56,144.78,144.72,4.3685647]
[1750775243070,6.9044,144.76,144.73,6.9054]
[1750775243476,6.9039,144.77,144.74,6.9048]
[1750775243885,41.56,144.78,144.74,4.3685647]
[1750775244364,6.9031,144.79,144.74,4.3685647]
[1750775244565,6.9031,144.79,144.76,4.3685647]
[1750775245178,6.9031,144.79,144.76,11.2724647]
[1750775245375,6.9034,144.78,144.76,4.3685647]
[1750775245673,41.38,144.81,144.76,11.2726647]
[1750775245977,6.9032,144.79,144.76,11.2726647]
[1750775246672,179.47487168,144.89,144.78,4.3666549]
[1750775246673,2.1866,144.87,144.78,4.3666549]
[1750775246866,907.0,145.61,144.78,4.3666549]
[1750775246867,5.44021285,145.1,144.86,8.7333098]
[1750775247070,41.38,145.18,145.02,4.3666549]
[1750775247271,4.3666549,145.12,145.04,4.3666549]
[1750775247471,41.38,145.17,145.04,4.3666549]
[1750775247670,41.38,145.17,144.96,149.2266549]
[1750775247671,6.8888,145.09,145.03,4.3666549]
[1750775247977,41.38,145.11,145.03,4.3666549]
[1750775248273,41.38,145.11,145.03,7.25144086]
[1750775248474,43.64,145.11,145.03,7.25144086]
[1750775248662,50.5276,145.11,145.03,7.25144086]
[1750775248866,2.26,145.11,145.0,7.25144086]
[1750775249078,2.26,145.11,145.03,7.25144086]
[1750775249272,2.212,145.1,145.04,6.8905]
[1750775249875,2.212,145.1,145.03,7.25144086]